[Event "Titled Tuesday Blitz April 11 Late 2023"]
[White "Hakobyan, Aram"]
[Black "Lazavik, Denis"]
[WhiteFideId "13306677"]
[BlackFideId "13515110"]
[WhiteElo "2584"]
[BlackElo "2560"]
[Result "1-0"]
[Round "08"]
[TimeControl "180+2"]
[Date "2023.04.11"]
[WhiteClock "0:01:16"]
[BlackClock "0:00:08"]

1. d4 {[%clk 0:03:00]}  Nf6 {[%clk 0:02:59]} 2. c4 {[%clk 0:03:01]}  e6 {[%clk 0:03:00]} 3. Nc3 {[%clk 0:03:02]}  Bb4 {[%clk 0:03:00]} 4. e3 {[%clk 0:03:03]}  O-O {[%clk 0:03:00]} 5. a3 {[%clk 0:03:03]}  Bxc3+ {[%clk 0:02:59]} 6. bxc3 {[%clk 0:03:04]}  c5 {[%clk 0:02:59]} 7. Ne2 {[%clk 0:03:05]}  Nc6 {[%clk 0:02:49]} 8. Ng3 {[%clk 0:03:05]}  d6 {[%clk 0:02:48]} 9. Ra2 {[%clk 0:03:04]}  e5 {[%clk 0:02:42]} 10. d5 {[%clk 0:03:03]}  Ne7 {[%clk 0:02:41]} 11. e4 {[%clk 0:03:03]}  Ng6 {[%clk 0:02:39]} 12. Bd3 {[%clk 0:02:56]}  Nf4 {[%clk 0:02:32]} 13. O-O {[%clk 0:02:55]}  Qe7 {[%clk 0:02:27]} 14. Bb1 {[%clk 0:02:50]}  Ng6 {[%clk 0:02:18]} 15. f3 {[%clk 0:02:46]}  h6 {[%clk 0:02:17]} 16. Raf2 {[%clk 0:02:46]}  Bd7 {[%clk 0:02:14]} 17. Nf5 {[%clk 0:02:41]}  Bxf5 {[%clk 0:02:11]} 18. exf5 {[%clk 0:02:42]}  Nh8 {[%clk 0:02:10]} 19. f4 {[%clk 0:02:34]}  exf4 {[%clk 0:01:38]} 20. Bxf4 {[%clk 0:02:35]}  Nh7 {[%clk 0:01:19]} 21. Re2 {[%clk 0:02:14]}  Qf6 {[%clk 0:01:12]} 22. Qe1 {[%clk 0:02:14]}  a6 {[%clk 0:01:03]} 23. a4 {[%clk 0:02:14]}  Rab8 {[%clk 0:01:02]} 24. Bd3 {[%clk 0:02:12]}  Rbd8 {[%clk 0:01:01]} 25. h4 {[%clk 0:02:09]}  h5 {[%clk 0:00:56]} 26. Rf3 {[%clk 0:02:05]}  Rd7 {[%clk 0:00:47]} 27. Rg3 {[%clk 0:02:04]}  Qd8 {[%clk 0:00:47]} 28. Bh6 {[%clk 0:02:00]}  f6 {[%clk 0:00:45]} 29. Re6 {[%clk 0:01:52]}  Qc7 {[%clk 0:00:35]} 30. Qe2 {[%clk 0:01:49]}  Rff7 {[%clk 0:00:25]} 31. Qxh5 {[%clk 0:01:38]}  Nf8 {[%clk 0:00:26]} 32. Bf4 {[%clk 0:01:36]}  Qd8 {[%clk 0:00:19]} 33. Qg4 {[%clk 0:01:32]}  Rfe7 {[%clk 0:00:17]} 34. h5 {[%clk 0:01:32]}  Rxe6 {[%clk 0:00:13]} 35. fxe6 {[%clk 0:01:31]}  Re7 {[%clk 0:00:13]} 36. Qf5 {[%clk 0:01:21]}  Rc7 {[%clk 0:00:10]} 37. Rg4 {[%clk 0:01:16]}  Qe7 {[%clk 0:00:10]} 38. Bg3 {[%clk 0:01:16]}  Rc8 {[%clk 0:00:08]} 39. Bh4 {[%clk 0:01:16]} 1-0


[Site "https://www.chess.com"]

[Event "Titled Tuesday Blitz April 11 Late 2023"]
[White "Bakalchuk, Johnatan"]
[Black "Sarana, Alexey"]
[WhiteFideId "2810301"]
[BlackFideId "24133795"]
[WhiteElo "2450"]
[BlackElo "2714"]
[Result "1-0"]
[Round "08"]
[TimeControl "180+2"]
[Date "2023.04.11"]
[WhiteClock "0:00:49"]
[BlackClock "0:00:02"]

1. e4 {[%clk 0:02:56]}  c5 {[%clk 0:03:00]} 2. Nf3 {[%clk 0:02:55]}  d6 {[%clk 0:02:59]} 3. d4 {[%clk 0:02:55]}  cxd4 {[%clk 0:02:59]} 4. Nxd4 {[%clk 0:02:56]}  Nf6 {[%clk 0:03:00]} 5. Nc3 {[%clk 0:02:56]}  a6 {[%clk 0:03:00]} 6. Be2 {[%clk 0:02:56]}  e5 {[%clk 0:03:01]} 7. Nb3 {[%clk 0:02:54]}  Be7 {[%clk 0:03:01]} 8. Bg5 {[%clk 0:02:52]}  Nbd7 {[%clk 0:03:00]} 9. a4 {[%clk 0:02:52]}  h6 {[%clk 0:02:59]} 10. Bh4 {[%clk 0:02:46]}  O-O {[%clk 0:02:43]} 11. O-O {[%clk 0:02:42]}  Qc7 {[%clk 0:02:43]} 12. Nd2 {[%clk 0:02:38]}  Nc5 {[%clk 0:02:14]} 13. Bxf6 {[%clk 0:02:34]}  Bxf6 {[%clk 0:02:15]} 14. Nc4 {[%clk 0:02:26]}  Be6 {[%clk 0:01:43]} 15. Qxd6 {[%clk 0:02:26]}  Qxd6 {[%clk 0:01:36]} 16. Nxd6 {[%clk 0:02:27]}  Rfd8 {[%clk 0:01:36]} 17. Rfd1 {[%clk 0:02:26]}  Kf8 {[%clk 0:01:15]} 18. b4 {[%clk 0:02:00]}  Nd7 {[%clk 0:01:14]} 19. a5 {[%clk 0:01:42]}  Be7 {[%clk 0:01:10]} 20. Na4 {[%clk 0:01:35]}  Rab8 {[%clk 0:00:48]} 21. Rd2 {[%clk 0:01:14]}  Nf6 {[%clk 0:00:39]} 22. Rad1 {[%clk 0:01:14]}  Bxd6 {[%clk 0:00:11]} 23. Rxd6 {[%clk 0:01:15]}  Rxd6 {[%clk 0:00:12]} 24. Rxd6 {[%clk 0:01:16]}  Nxe4 {[%clk 0:00:13]} 25. Rb6 {[%clk 0:01:16]}  Bd5 {[%clk 0:00:07]} 26. Bxa6 {[%clk 0:01:04]}  Rc8 {[%clk 0:00:07]} 27. Bd3 {[%clk 0:01:04]}  Nf6 {[%clk 0:00:04]} 28. Nc5 {[%clk 0:01:02]}  e4 {[%clk 0:00:05]} 29. Bb5 {[%clk 0:00:55]}  Rc7 {[%clk 0:00:05]} 30. c4 {[%clk 0:00:53]}  Ke7 {[%clk 0:00:02]} 31. cxd5 {[%clk 0:00:50]}  Nxd5 {[%clk 0:00:03]} 32. Rxb7 {[%clk 0:00:50]}  Kd6 {[%clk 0:00:02]} 33. Nxe4+ {[%clk 0:00:49]} 1-0


[Site "https://www.chess.com"]

[Event "Titled Tuesday Blitz April 11 Late 2023"]
[White "Rustemov, Alexander"]
[Black "Nakamura, Hikaru"]
[WhiteFideId "4119002"]
[BlackFideId "2016192"]
[WhiteElo "2525"]
[BlackElo "2885"]
[Result "0-1"]
[Round "08"]
[TimeControl "180+2"]
[Date "2023.04.11"]
[WhiteClock "0:00:14"]
[BlackClock "0:01:41"]

1. d4 {[%clk 0:03:00]}  a5 {[%clk 0:02:58]} 2. e4 {[%clk 0:02:59]}  a4 {[%clk 0:02:57]} 3. Nf3 {[%clk 0:02:57]}  c6 {[%clk 0:02:57]} 4. c4 {[%clk 0:02:56]}  e6 {[%clk 0:02:53]} 5. Nc3 {[%clk 0:02:55]}  a3 {[%clk 0:02:53]} 6. Bd3 {[%clk 0:02:53]}  axb2 {[%clk 0:02:53]} 7. Bxb2 {[%clk 0:02:54]}  Ba3 {[%clk 0:02:54]} 8. Qc1 {[%clk 0:02:49]}  Bxb2 {[%clk 0:02:54]} 9. Qxb2 {[%clk 0:02:50]}  d6 {[%clk 0:02:53]} 10. O-O {[%clk 0:02:48]}  Ne7 {[%clk 0:02:53]} 11. a4 {[%clk 0:02:38]}  Ra5 {[%clk 0:02:53]} 12. Rfb1 {[%clk 0:02:35]}  Nd7 {[%clk 0:02:48]} 13. Nd2 {[%clk 0:02:31]}  O-O {[%clk 0:02:47]} 14. Nb3 {[%clk 0:02:31]}  Ra7 {[%clk 0:02:45]} 15. a5 {[%clk 0:02:30]}  e5 {[%clk 0:02:43]} 16. d5 {[%clk 0:02:30]}  c5 {[%clk 0:02:42]} 17. g3 {[%clk 0:02:08]}  g6 {[%clk 0:02:35]} 18. Qd2 {[%clk 0:01:53]}  f5 {[%clk 0:02:35]} 19. f3 {[%clk 0:01:46]}  f4 {[%clk 0:02:28]} 20. g4 {[%clk 0:01:46]}  g5 {[%clk 0:02:29]} 21. Kf2 {[%clk 0:01:33]}  h5 {[%clk 0:02:29]} 22. h3 {[%clk 0:01:30]}  Kf7 {[%clk 0:02:17]} 23. Rg1 {[%clk 0:01:29]}  Rh8 {[%clk 0:02:16]} 24. Rg2 {[%clk 0:01:28]}  Ng6 {[%clk 0:02:11]} 25. Rag1 {[%clk 0:01:27]}  Nh4 {[%clk 0:02:09]} 26. Rh2 {[%clk 0:01:26]}  Nf6 {[%clk 0:02:09]} 27. Be2 {[%clk 0:01:21]}  Nxf3 {[%clk 0:02:03]} 28. Bxf3 {[%clk 0:01:10]}  hxg4 {[%clk 0:02:03]} 29. Rhg2 {[%clk 0:00:48]}  Rxh3 {[%clk 0:01:57]} 30. Bxg4 {[%clk 0:00:45]}  Rxc3 {[%clk 0:01:53]} 31. Be6+ {[%clk 0:00:39]}  Bxe6 {[%clk 0:01:46]} 32. dxe6+ {[%clk 0:00:39]}  Ke7 {[%clk 0:01:46]} 33. Ke1 {[%clk 0:00:17]}  Rxb3 {[%clk 0:01:42]} 34. Rxg5 {[%clk 0:00:17]}  Qxa5 {[%clk 0:01:41]} 35. Rg7+ {[%clk 0:00:14]}  Kxe6 {[%clk 0:01:41]} 0-1


[Site "https://www.chess.com"]

[Event "Titled Tuesday Blitz April 11 Late 2023"]
[White "Corrales Jimenez, Fidel"]
[Black "Naroditsky, Daniel"]
[WhiteFideId "3506690"]
[BlackFideId "2026961"]
[WhiteElo "2541"]
[BlackElo "2633"]
[Result "0-1"]
[Round "08"]
[TimeControl "180+2"]
[Date "2023.04.11"]
[WhiteClock "0:00:42"]
[BlackClock "0:00:26"]

1. e4 {[%clk 0:03:00]}  e5 {[%clk 0:02:57]} 2. Nf3 {[%clk 0:03:00]}  Nc6 {[%clk 0:02:57]} 3. Bb5 {[%clk 0:03:00]}  a6 {[%clk 0:02:57]} 4. Ba4 {[%clk 0:02:59]}  d6 {[%clk 0:02:58]} 5. c3 {[%clk 0:02:57]}  Bd7 {[%clk 0:02:58]} 6. h3 {[%clk 0:02:58]}  Nf6 {[%clk 0:02:59]} 7. Bc2 {[%clk 0:02:57]}  g6 {[%clk 0:02:58]} 8. O-O {[%clk 0:02:58]}  Bg7 {[%clk 0:02:59]} 9. Re1 {[%clk 0:02:58]}  O-O {[%clk 0:02:59]} 10. a4 {[%clk 0:02:59]}  d5 {[%clk 0:02:42]} 11. exd5 {[%clk 0:02:56]}  Nxd5 {[%clk 0:02:43]} 12. d4 {[%clk 0:02:47]}  exd4 {[%clk 0:02:43]} 13. cxd4 {[%clk 0:02:47]}  Be6 {[%clk 0:02:30]} 14. Bg5 {[%clk 0:02:43]}  Qd7 {[%clk 0:02:28]} 15. Bb3 {[%clk 0:02:38]}  Rfe8 {[%clk 0:02:24]} 16. Nc3 {[%clk 0:02:36]}  h6 {[%clk 0:02:19]} 17. Bh4 {[%clk 0:02:33]}  g5 {[%clk 0:02:12]} 18. Bg3 {[%clk 0:02:33]}  Rad8 {[%clk 0:02:13]} 19. Ne4 {[%clk 0:02:18]}  b6 {[%clk 0:02:13]} 20. Rc1 {[%clk 0:02:15]}  f5 {[%clk 0:01:43]} 21. Nc3 {[%clk 0:02:14]}  f4 {[%clk 0:01:35]} 22. Rxe6 {[%clk 0:02:14]}  Qxe6 {[%clk 0:01:34]} 23. Nxd5 {[%clk 0:02:13]}  Rxd5 {[%clk 0:01:34]} 24. Ne5 {[%clk 0:02:01]}  Nxe5 {[%clk 0:01:28]} 25. Qe2 {[%clk 0:01:43]}  fxg3 {[%clk 0:01:19]} 26. dxe5 {[%clk 0:01:38]}  gxf2+ {[%clk 0:01:03]} 27. Qxf2 {[%clk 0:01:37]}  Bxe5 {[%clk 0:00:56]} 28. Kh1 {[%clk 0:01:34]}  Kg7 {[%clk 0:00:48]} 29. Re1 {[%clk 0:01:23]}  Re7 {[%clk 0:00:45]} 30. h4 {[%clk 0:01:14]}  Rd2 {[%clk 0:00:33]} 31. Qxd2 {[%clk 0:01:06]}  Qxb3 {[%clk 0:00:33]} 32. hxg5 {[%clk 0:01:00]}  Qg3 {[%clk 0:00:33]} 33. gxh6+ {[%clk 0:01:00]}  Kh7 {[%clk 0:00:34]} 34. Qc2+ {[%clk 0:00:49]}  Kxh6 {[%clk 0:00:33]} 35. Qc6+ {[%clk 0:00:48]}  Bd6 {[%clk 0:00:28]} 36. Qc1+ {[%clk 0:00:46]}  Kg6 {[%clk 0:00:26]} 37. Qc2+ {[%clk 0:00:42]}  Kh6 {[%clk 0:00:26]} 38. Qc1+ {[%clk 0:00:42]}  Qg5 {[%clk 0:00:26]} 0-1


[Site "https://www.chess.com"]

[Event "Titled Tuesday Blitz April 11 Late 2023"]
[White "Melkumyan, Hrant"]
[Black "Svane, Rasmus"]
[WhiteFideId "13302485"]
[BlackFideId "4657101"]
[WhiteElo "2604"]
[BlackElo "2597"]
[Result "1-0"]
[Round "08"]
[TimeControl "180+2"]
[Date "2023.04.11"]
[WhiteClock "0:00:46"]
[BlackClock "0:00:11"]

1. d4 {[%clk 0:02:54]}  Nf6 {[%clk 0:03:00]} 2. c4 {[%clk 0:02:54]}  e6 {[%clk 0:03:00]} 3. Bf4 {[%clk 0:02:55]}  d5 {[%clk 0:02:59]} 4. Nc3 {[%clk 0:02:55]}  Be7 {[%clk 0:02:34]} 5. e3 {[%clk 0:02:53]}  O-O {[%clk 0:02:34]} 6. Rc1 {[%clk 0:02:53]}  c5 {[%clk 0:02:25]} 7. dxc5 {[%clk 0:02:52]}  Bxc5 {[%clk 0:02:26]} 8. cxd5 {[%clk 0:02:49]}  exd5 {[%clk 0:02:24]} 9. Nf3 {[%clk 0:02:40]}  Nc6 {[%clk 0:02:24]} 10. Be2 {[%clk 0:02:40]}  d4 {[%clk 0:02:20]} 11. exd4 {[%clk 0:02:38]}  Nxd4 {[%clk 0:02:20]} 12. O-O {[%clk 0:02:37]}  Nxe2+ {[%clk 0:02:07]} 13. Qxe2 {[%clk 0:02:37]}  Bg4 {[%clk 0:02:08]} 14. Qc4 {[%clk 0:02:36]}  Rc8 {[%clk 0:02:05]} 15. Qb3 {[%clk 0:02:24]}  Bxf3 {[%clk 0:02:04]} 16. gxf3 {[%clk 0:02:25]}  Qd7 {[%clk 0:02:00]} 17. Bg3 {[%clk 0:02:18]}  b6 {[%clk 0:01:33]} 18. Rcd1 {[%clk 0:02:14]}  Qf5 {[%clk 0:01:33]} 19. Nd5 {[%clk 0:02:14]}  Rfd8 {[%clk 0:01:22]} 20. Nxf6+ {[%clk 0:02:04]}  Qxf6 {[%clk 0:01:23]} 21. Kg2 {[%clk 0:02:04]}  h6 {[%clk 0:01:23]} 22. Rfe1 {[%clk 0:01:59]}  Rxd1 {[%clk 0:01:20]} 23. Rxd1 {[%clk 0:01:59]}  Bd4 {[%clk 0:01:20]} 24. Rd2 {[%clk 0:01:56]}  a5 {[%clk 0:01:14]} 25. a4 {[%clk 0:01:44]}  Rc1 {[%clk 0:01:07]} 26. Qb5 {[%clk 0:01:36]}  Bc5 {[%clk 0:00:44]} 27. Qe8+ {[%clk 0:01:28]}  Kh7 {[%clk 0:00:44]} 28. Rd7 {[%clk 0:01:26]}  Qe6 {[%clk 0:00:35]} 29. Qxe6 {[%clk 0:01:23]}  fxe6 {[%clk 0:00:34]} 30. Be5 {[%clk 0:01:23]}  Bf8 {[%clk 0:00:30]} 31. Rf7 {[%clk 0:01:18]}  Kg8 {[%clk 0:00:28]} 32. Rb7 {[%clk 0:01:18]}  Rc4 {[%clk 0:00:28]} 33. Rxb6 {[%clk 0:00:57]}  Rxa4 {[%clk 0:00:28]} 34. Rxe6 {[%clk 0:00:58]}  Rb4 {[%clk 0:00:24]} 35. Ra6 {[%clk 0:00:57]}  Rb5 {[%clk 0:00:24]} 36. f4 {[%clk 0:00:57]}  Kf7 {[%clk 0:00:22]} 37. Kf3 {[%clk 0:00:56]}  g6 {[%clk 0:00:19]} 38. Rf6+ {[%clk 0:00:55]}  Ke8 {[%clk 0:00:12]} 39. Rxg6 {[%clk 0:00:55]}  Rb3+ {[%clk 0:00:13]} 40. Ke4 {[%clk 0:00:54]}  a4 {[%clk 0:00:11]} 41. Re6+ {[%clk 0:00:50]}  Kf7 {[%clk 0:00:11]} 42. Rf6+ {[%clk 0:00:51]}  Kg8 {[%clk 0:00:12]} 43. Kf5 {[%clk 0:00:46]}  a3 {[%clk 0:00:12]} 44. bxa3 {[%clk 0:00:46]}  Rxa3 {[%clk 0:00:11]} 45. Rxf8+ {[%clk 0:00:46]} 1-0


[Site "https://www.chess.com"]

[Event "Titled Tuesday Blitz April 11 Late 2023"]
[White "Anton Guijarro, David"]
[Black "Durarbayli, Vasif"]
[WhiteFideId "2285525"]
[BlackFideId "13402935"]
[WhiteElo "2618"]
[BlackElo "2551"]
[Result "0-1"]
[Round "08"]
[TimeControl "180+2"]
[Date "2023.04.11"]
[WhiteClock "0:00:05"]
[BlackClock "0:00:16"]

1. d4 {[%clk 0:03:00]}  Nf6 {[%clk 0:02:59]} 2. Nf3 {[%clk 0:03:01]}  d5 {[%clk 0:02:59]} 3. e3 {[%clk 0:03:01]}  c5 {[%clk 0:02:58]} 4. Be2 {[%clk 0:03:01]}  Nc6 {[%clk 0:02:57]} 5. O-O {[%clk 0:03:01]}  cxd4 {[%clk 0:02:57]} 6. exd4 {[%clk 0:03:02]}  Bf5 {[%clk 0:02:57]} 7. Nh4 {[%clk 0:03:02]}  Bg6 {[%clk 0:02:56]} 8. c3 {[%clk 0:03:00]}  e6 {[%clk 0:02:57]} 9. Bf4 {[%clk 0:02:54]}  Bd6 {[%clk 0:02:55]} 10. Bxd6 {[%clk 0:02:49]}  Qxd6 {[%clk 0:02:56]} 11. Nd2 {[%clk 0:02:49]}  Rb8 {[%clk 0:02:54]} 12. a4 {[%clk 0:02:49]}  a6 {[%clk 0:02:51]} 13. a5 {[%clk 0:02:49]}  O-O {[%clk 0:02:40]} 14. Nxg6 {[%clk 0:02:49]}  hxg6 {[%clk 0:02:39]} 15. g3 {[%clk 0:02:43]}  Qc7 {[%clk 0:02:35]} 16. Qa4 {[%clk 0:02:39]}  Ne8 {[%clk 0:02:30]} 17. Bd3 {[%clk 0:02:37]}  Nd6 {[%clk 0:02:31]} 18. Rfe1 {[%clk 0:02:36]}  Rfe8 {[%clk 0:02:23]} 19. Nb3 {[%clk 0:02:22]}  e5 {[%clk 0:02:13]} 20. dxe5 {[%clk 0:02:20]}  Rxe5 {[%clk 0:02:11]} 21. Bf1 {[%clk 0:02:07]}  Ne4 {[%clk 0:02:01]} 22. Nd4 {[%clk 0:01:56]}  Nc5 {[%clk 0:01:45]} 23. Qa2 {[%clk 0:01:35]}  Rxe1 {[%clk 0:01:39]} 24. Rxe1 {[%clk 0:01:35]}  Nxd4 {[%clk 0:01:38]} 25. cxd4 {[%clk 0:01:36]}  Ne6 {[%clk 0:01:38]} 26. Qxd5 {[%clk 0:01:31]}  Rd8 {[%clk 0:01:34]} 27. Qe5 {[%clk 0:01:17]}  Qd7 {[%clk 0:01:34]} 28. Bh3 {[%clk 0:00:30]}  Nxd4 {[%clk 0:01:35]} 29. Bxd7 {[%clk 0:00:30]}  Nf3+ {[%clk 0:01:35]} 30. Kg2 {[%clk 0:00:30]}  Nxe5 {[%clk 0:01:36]} 31. Rxe5 {[%clk 0:00:23]}  Rxd7 {[%clk 0:01:37]} 32. Re8+ {[%clk 0:00:22]}  Kh7 {[%clk 0:01:37]} 33. Rb8 {[%clk 0:00:23]}  g5 {[%clk 0:01:37]} 34. b4 {[%clk 0:00:23]}  Kg6 {[%clk 0:01:27]} 35. Kf3 {[%clk 0:00:20]}  Kf5 {[%clk 0:01:27]} 36. h3 {[%clk 0:00:18]}  f6 {[%clk 0:01:10]} 37. Ke3 {[%clk 0:00:18]}  Ke5 {[%clk 0:01:09]} 38. f3 {[%clk 0:00:18]}  Rc7 {[%clk 0:01:05]} 39. Kd3 {[%clk 0:00:15]}  Kd5 {[%clk 0:01:04]} 40. h4 {[%clk 0:00:13]}  gxh4 {[%clk 0:01:04]} 41. gxh4 {[%clk 0:00:14]}  Ke5 {[%clk 0:00:58]} 42. Ke3 {[%clk 0:00:14]}  g6 {[%clk 0:00:54]} 43. Rg8 {[%clk 0:00:10]}  Kf5 {[%clk 0:00:53]} 44. Rb8 {[%clk 0:00:09]}  Rh7 {[%clk 0:00:43]} 45. Kf2 {[%clk 0:00:07]}  Kf4 {[%clk 0:00:44]} 46. Ke2 {[%clk 0:00:03]}  f5 {[%clk 0:00:24]} 47. Kf2 {[%clk 0:00:04]}  Rc7 {[%clk 0:00:22]} 48. Kg2 {[%clk 0:00:04]}  Rh7 {[%clk 0:00:15]} 49. Kf2 {[%clk 0:00:04]}  Rxh4 {[%clk 0:00:14]} 50. Rxb7 {[%clk 0:00:04]}  Rh2+ {[%clk 0:00:15]} 51. Kg1 {[%clk 0:00:04]}  Rb2 {[%clk 0:00:15]} 52. Rb6 {[%clk 0:00:03]}  g5 {[%clk 0:00:16]} 53. Rxa6 {[%clk 0:00:02]}  Kg3 {[%clk 0:00:15]} 54. Kf1 {[%clk 0:00:02]}  Kxf3 {[%clk 0:00:15]} 55. Ke1 {[%clk 0:00:02]}  Rxb4 {[%clk 0:00:16]} 56. Rf6 {[%clk 0:00:01]}  f4 {[%clk 0:00:16]} 57. a6 {[%clk 0:00:02]}  Ra4 {[%clk 0:00:16]} 58. Kd2 {[%clk 0:00:03]}  g4 {[%clk 0:00:17]} 59. Kc3 {[%clk 0:00:03]}  g3 {[%clk 0:00:17]} 60. Kb3 {[%clk 0:00:04]}  Ra1 {[%clk 0:00:16]} 61. Rc6 {[%clk 0:00:04]}  g2 {[%clk 0:00:16]} 62. Rc3+ {[%clk 0:00:05]}  Kg4 {[%clk 0:00:16]} 63. Rc2 {[%clk 0:00:05]}  g1=Q {[%clk 0:00:16]} 0-1


[Site "https://www.chess.com"]

[Event "Titled Tuesday Blitz April 11 Late 2023"]
[White "Grigoriants, Sergey"]
[Black "Grigorjev, Iljya"]
[WhiteFideId "4130804"]
[BlackFideId "24159565"]
[WhiteElo "2502"]
[BlackElo "2323"]
[Result "1-0"]
[Round "08"]
[TimeControl "180+2"]
[Date "2023.04.11"]
[WhiteClock "0:00:02"]
[BlackClock "0:00:02"]

1. d4 {[%clk 0:02:55]}  Nf6 {[%clk 0:02:59]} 2. c4 {[%clk 0:02:55]}  g6 {[%clk 0:03:00]} 3. f3 {[%clk 0:02:55]}  d5 {[%clk 0:03:00]} 4. cxd5 {[%clk 0:02:53]}  Nxd5 {[%clk 0:03:00]} 5. e4 {[%clk 0:02:54]}  Nb6 {[%clk 0:03:01]} 6. Nc3 {[%clk 0:02:54]}  Bg7 {[%clk 0:03:02]} 7. Be3 {[%clk 0:02:54]}  O-O {[%clk 0:03:02]} 8. Qd2 {[%clk 0:02:55]}  Nc6 {[%clk 0:02:54]} 9. O-O-O {[%clk 0:02:54]}  f5 {[%clk 0:02:54]} 10. e5 {[%clk 0:02:49]}  f4 {[%clk 0:02:53]} 11. Bxf4 {[%clk 0:02:35]}  Nb4 {[%clk 0:02:53]} 12. Bh6 {[%clk 0:02:23]}  Be6 {[%clk 0:02:44]} 13. Bxg7 {[%clk 0:02:21]}  Kxg7 {[%clk 0:02:45]} 14. a3 {[%clk 0:02:17]}  a5 {[%clk 0:02:00]} 15. h4 {[%clk 0:02:09]}  Nc4 {[%clk 0:01:41]} 16. Bxc4 {[%clk 0:01:59]}  Bxc4 {[%clk 0:01:42]} 17. h5 {[%clk 0:01:59]}  Nd3+ {[%clk 0:01:33]} 18. Kb1 {[%clk 0:01:58]}  Qxd4 {[%clk 0:00:45]} 19. hxg6 {[%clk 0:01:56]}  h5 {[%clk 0:00:40]} 20. Rxh5 {[%clk 0:01:47]}  Rh8 {[%clk 0:00:41]} 21. Nge2 {[%clk 0:01:40]}  Qb6 {[%clk 0:00:35]} 22. Rdh1 {[%clk 0:00:34]}  Qxg6 {[%clk 0:00:29]} 23. Rxh8 {[%clk 0:00:29]}  Rxh8 {[%clk 0:00:22]} 24. Rxh8 {[%clk 0:00:29]}  Kxh8 {[%clk 0:00:23]} 25. Nc1 {[%clk 0:00:12]}  Nxe5+ {[%clk 0:00:14]} 26. Ne4 {[%clk 0:00:12]}  Be6 {[%clk 0:00:07]} 27. Qxa5 {[%clk 0:00:11]}  Nc6 {[%clk 0:00:07]} 28. Qc3+ {[%clk 0:00:10]}  Kg8 {[%clk 0:00:06]} 29. Qd2 {[%clk 0:00:07]}  Bf5 {[%clk 0:00:05]} 30. Qd5+ {[%clk 0:00:06]}  e6 {[%clk 0:00:05]} 31. Qd7 {[%clk 0:00:05]}  Qxg2 {[%clk 0:00:03]} 32. Qc8+ {[%clk 0:00:05]}  Kg7 {[%clk 0:00:02]} 33. Qxc7+ {[%clk 0:00:05]}  Kg6 {[%clk 0:00:03]} 34. Qf4 {[%clk 0:00:04]}  Nd4 {[%clk 0:00:03]} 35. Ka2 {[%clk 0:00:03]}  Qc2 {[%clk 0:00:02]} 36. Nc3 {[%clk 0:00:02]} 1-0


[Site "https://www.chess.com"]

[Event "Titled Tuesday Blitz April 11 Late 2023"]
[White "Gharibyan, Mamikon"]
[Black "Eljanov, Pavel"]
[WhiteFideId "13308300"]
[BlackFideId "14102951"]
[WhiteElo "2445"]
[BlackElo "2598"]
[Result "0-1"]
[Round "08"]
[TimeControl "180+2"]
[Date "2023.04.11"]
[WhiteClock "0:00:02"]
[BlackClock "0:00:35"]

1. d4 {[%clk 0:03:00]}  Nf6 {[%clk 0:02:59]} 2. c4 {[%clk 0:03:00]}  e6 {[%clk 0:03:00]} 3. Nf3 {[%clk 0:03:00]}  b6 {[%clk 0:03:00]} 4. g3 {[%clk 0:03:00]}  Bb7 {[%clk 0:03:00]} 5. Bg2 {[%clk 0:02:59]}  Bb4+ {[%clk 0:03:01]} 6. Bd2 {[%clk 0:02:58]}  Be7 {[%clk 0:03:01]} 7. O-O {[%clk 0:02:58]}  O-O {[%clk 0:03:01]} 8. Nc3 {[%clk 0:02:51]}  c6 {[%clk 0:03:01]} 9. Ne5 {[%clk 0:02:35]}  d6 {[%clk 0:02:55]} 10. Nd3 {[%clk 0:02:34]}  d5 {[%clk 0:02:55]} 11. Qb3 {[%clk 0:02:14]}  Nbd7 {[%clk 0:02:30]} 12. cxd5 {[%clk 0:02:06]}  cxd5 {[%clk 0:02:30]} 13. a4 {[%clk 0:02:06]}  Nb8 {[%clk 0:02:19]} 14. a5 {[%clk 0:02:02]}  Nc6 {[%clk 0:02:19]} 15. a6 {[%clk 0:01:51]}  Bc8 {[%clk 0:02:18]} 16. Qa4 {[%clk 0:01:40]}  Bd7 {[%clk 0:02:17]} 17. Bf4 {[%clk 0:01:31]}  b5 {[%clk 0:01:30]} 18. Nxb5 {[%clk 0:01:26]}  Nxd4 {[%clk 0:01:30]} 19. Qxd4 {[%clk 0:01:24]}  Bxb5 {[%clk 0:01:30]} 20. Rfc1 {[%clk 0:01:16]}  Bd6 {[%clk 0:01:30]} 21. Ne5 {[%clk 0:01:08]}  Qb8 {[%clk 0:00:59]} 22. Ra5 {[%clk 0:00:52]}  Nh5 {[%clk 0:00:49]} 23. Ng6 {[%clk 0:00:05]}  Nxf4 {[%clk 0:00:45]} 24. Nxf4 {[%clk 0:00:05]}  Bxf4 {[%clk 0:00:39]} 25. gxf4 {[%clk 0:00:01]}  Bxe2 {[%clk 0:00:37]} 26. f5 {[%clk 0:00:02]}  Qb6 {[%clk 0:00:35]} 0-1


[Site "https://www.chess.com"]

[Event "Titled Tuesday Blitz April 11 Late 2023"]
[White "Klukin, Kirill"]
[Black "Terry, Renato"]
[WhiteFideId "24199273"]
[BlackFideId "3803457"]
[WhiteElo "2344"]
[BlackElo "2575"]
[Result "0-1"]
[Round "08"]
[TimeControl "180+2"]
[Date "2023.04.11"]
[WhiteClock "0:00:52"]
[BlackClock "0:01:58"]

1. d4 {[%clk 0:03:00]}  e6 {[%clk 0:02:59]} 2. c4 {[%clk 0:03:01]}  Bb4+ {[%clk 0:02:59]} 3. Nc3 {[%clk 0:03:01]}  c5 {[%clk 0:02:58]} 4. e3 {[%clk 0:02:58]}  Bxc3+ {[%clk 0:02:58]} 5. bxc3 {[%clk 0:02:58]}  Qa5 {[%clk 0:02:59]} 6. Bd2 {[%clk 0:02:58]}  Nf6 {[%clk 0:02:59]} 7. Bd3 {[%clk 0:02:58]}  d6 {[%clk 0:02:59]} 8. Ne2 {[%clk 0:02:59]}  O-O {[%clk 0:03:00]} 9. O-O {[%clk 0:02:58]}  e5 {[%clk 0:03:00]} 10. e4 {[%clk 0:02:56]}  Re8 {[%clk 0:02:59]} 11. d5 {[%clk 0:02:39]}  Nbd7 {[%clk 0:02:55]} 12. Qc2 {[%clk 0:02:24]}  Nb6 {[%clk 0:02:48]} 13. f4 {[%clk 0:02:22]}  Qa4 {[%clk 0:02:46]} 14. Qxa4 {[%clk 0:01:49]}  Nxa4 {[%clk 0:02:47]} 15. fxe5 {[%clk 0:01:50]}  dxe5 {[%clk 0:02:47]} 16. Nc1 {[%clk 0:01:38]}  Nb2 {[%clk 0:02:34]} 17. Re1 {[%clk 0:01:36]}  b6 {[%clk 0:02:33]} 18. Rb1 {[%clk 0:01:21]}  Nxd3 {[%clk 0:02:34]} 19. Nxd3 {[%clk 0:01:22]}  Ba6 {[%clk 0:02:34]} 20. Nb2 {[%clk 0:01:22]}  h6 {[%clk 0:02:30]} 21. Kf2 {[%clk 0:01:21]}  Re7 {[%clk 0:02:25]} 22. a4 {[%clk 0:01:22]}  Ne8 {[%clk 0:02:25]} 23. Ke3 {[%clk 0:01:21]}  Nd6 {[%clk 0:02:25]} 24. Kd3 {[%clk 0:01:22]}  f5 {[%clk 0:02:16]} 25. exf5 {[%clk 0:01:20]}  e4+ {[%clk 0:02:17]} 26. Kc2 {[%clk 0:01:16]}  Nxc4 {[%clk 0:02:11]} 27. Bf4 {[%clk 0:01:15]}  Na3+ {[%clk 0:02:11]} 28. Kd2 {[%clk 0:01:11]}  Nxb1+ {[%clk 0:02:12]} 29. Rxb1 {[%clk 0:01:12]}  e3+ {[%clk 0:02:10]} 30. Bxe3 {[%clk 0:01:03]}  Re4 {[%clk 0:02:06]} 31. Nd3 {[%clk 0:00:53]}  Rae8 {[%clk 0:01:58]} 32. Re1 {[%clk 0:00:52]}  Rxa4 {[%clk 0:01:58]} 0-1


[Site "https://www.chess.com"]